[Event "Early-Titled-Tuesday-Blitz-July-09-2024"]
[Site "Chess.com"]
[Date "2024.07.09"]
[Round "3"]
[White "Dmitry_Ponomarev"]
[Black "Matols"]
[Result "1-0"]
[WhiteElo "2533"]
[BlackElo "2347"]
[TimeControl "180+1"]
[EndTime "8:28:58 PDT"]
[Termination "Dmitry_Ponomarev won by resignation"]

1. e4 {[%clk 0:03:00.9]} 1... c6 {[%clk 0:03:00.1]} 2. d4 {[%clk 0:02:58.9]}
2... d5 {[%clk 0:03:00.5]} 3. Nd2 {[%clk 0:02:58.9]} 3... dxe4 {[%clk
0:03:00.2]} 4. Nxe4 {[%clk 0:02:59.8]} 4... Nf6 {[%clk 0:03:00.4]} 5. Nxf6+
{[%clk 0:02:59.8]} 5... exf6 {[%clk 0:03:01.3]} 6. Nf3 {[%clk 0:02:59.8]} 6...
Bd6 {[%clk 0:03:01.7]} 7. c3 {[%clk 0:02:59.9]} 7... O-O {[%clk 0:03:02.1]} 8.
Bd3 {[%clk 0:03:00.4]} 8... Re8+ {[%clk 0:03:01.4]} 9. Be3 {[%clk 0:02:59.7]}
9... Na6 {[%clk 0:02:53.4]} 10. O-O {[%clk 0:02:59.3]} 10... Nc7 {[%clk
0:02:52.6]} 11. c4 {[%clk 0:02:59.7]} 11... Bg4 {[%clk 0:02:50.8]} 12. h3 {[%clk
0:02:59.1]} 12... Bh5 {[%clk 0:02:49.8]} 13. Be2 {[%clk 0:02:44.4]} 13... Ne6
{[%clk 0:02:47.5]} 14. Nd2 {[%clk 0:02:37.2]} 14... Bxe2 {[%clk 0:02:45.6]} 15.
Qxe2 {[%clk 0:02:38.1]} 15... Nxd4 {[%clk 0:02:45.8]} 16. Qd3 {[%clk 0:02:38.7]}
16... Nf3+ {[%clk 0:02:41.6]} 17. Kh1 {[%clk 0:02:34.2]} 17... Ne5 {[%clk
0:02:34.3]} 18. Qc2 {[%clk 0:02:31.4]} 18... Bc7 {[%clk 0:02:33.2]} 19. Rad1
{[%clk 0:02:29.6]} 19... Qd3 {[%clk 0:02:25.3]} 20. Qc1 {[%clk 0:02:28.3]} 20...
Qg6 {[%clk 0:02:19.5]} 21. Nb3 {[%clk 0:02:19.1]} 21... Rad8 {[%clk 0:02:15.9]}
22. Qc3 {[%clk 0:02:19]} 22... b6 {[%clk 0:02:06.1]} 23. Nd4 {[%clk 0:02:14.1]}
23... Qh5 {[%clk 0:01:52.9]} 24. Kg1 {[%clk 0:02:01.6]} 24... Ng4 {[%clk
0:01:34.4]} 25. Nxc6 {[%clk 0:01:55.4]} 25... Rxd1 {[%clk 0:01:32.9]} 26. Rxd1
{[%clk 0:01:53.1]} 26... Nxe3 {[%clk 0:01:32.9]} 27. Re1 {[%clk 0:01:50.1]}
27... Qc5 {[%clk 0:01:02.7]} 28. Nd4 {[%clk 0:01:21.5]} 28... Rd8 {[%clk
0:00:43.6]} 29. Qxe3 {[%clk 0:01:16.2]} 29... g6 {[%clk 0:00:36.8]} 30. Nc2
{[%clk 0:01:08.3]} 30... Qxc4 {[%clk 0:00:34.5]} 31. Na3 {[%clk 0:01:04.6]}
31... Qxa2 {[%clk 0:00:33.1]} 32. Qe7 {[%clk 0:01:00.7]} 32... Qxb2 {[%clk
0:00:13.9]} 33. Qxc7 {[%clk 0:00:59.9]} 33... Rd2 {[%clk 0:00:13.7]} 34. Nc4
{[%clk 0:00:57.2]} 34... Qc2 {[%clk 0:00:13.4]} 35. Qb8+ {[%clk 0:00:56.9]}
35... Kg7 {[%clk 0:00:13.4]} 36. Nxd2 {[%clk 0:00:57.1]} 36... Qxd2 {[%clk
0:00:14.3]} 37. Re8 {[%clk 0:00:53.8]} 37... Qd1+ {[%clk 0:00:13.7]} 38. Kh2
{[%clk 0:00:54]} 38... Qd2 {[%clk 0:00:13.3]} 39. Rg8+ {[%clk 0:00:53.5]} 39...
Kh6 {[%clk 0:00:13.5]} 40. Qg3 {[%clk 0:00:54]} 1-0

[Event "Early-Titled-Tuesday-Blitz-July-09-2024"]
[Site "Chess.com"]
[Date "2024.07.09"]
[Round "3"]
[White "Hirna2005"]
[Black "annasargsyan_m"]
[Result "0-1"]
[WhiteElo "2426"]
[BlackElo "2649"]
[TimeControl "180+1"]
[EndTime "8:29:05 PDT"]
[Termination "annasargsyan_m won on time"]

1. e4 {[%clk 0:03:00.9]} 1... c6 {[%clk 0:02:59.4]} 2. Nc3 {[%clk 0:03:00.4]}
2... d5 {[%clk 0:03:00.3]} 3. Nf3 {[%clk 0:03:00.2]} 3... Bg4 {[%clk 0:02:59]}
4. h3 {[%clk 0:02:59.9]} 4... Bxf3 {[%clk 0:02:57.5]} 5. Qxf3 {[%clk 0:03:00.8]}
5... Nf6 {[%clk 0:02:57.6]} 6. d3 {[%clk 0:02:59.8]} 6... e6 {[%clk 0:02:54.9]}
7. Bd2 {[%clk 0:02:59.3]} 7... Bb4 {[%clk 0:02:52.5]} 8. a3 {[%clk 0:02:54.7]}
8... Bxc3 {[%clk 0:02:47.6]} 9. Bxc3 {[%clk 0:02:54.7]} 9... O-O {[%clk
0:02:47.3]} 10. Be2 {[%clk 0:02:38]} 10... d4 {[%clk 0:02:47]} 11. Bd2 {[%clk
0:02:37.9]} 11... c5 {[%clk 0:02:46.7]} 12. O-O {[%clk 0:02:37.1]} 12... Nc6
{[%clk 0:02:47.3]} 13. Qg3 {[%clk 0:02:35.7]} 13... Kh8 {[%clk 0:02:40.2]} 14.
f4 {[%clk 0:02:29.3]} 14... b5 {[%clk 0:02:39.5]} 15. a4 {[%clk 0:02:21.4]}
15... a6 {[%clk 0:02:31.1]} 16. Qf3 {[%clk 0:02:07.3]} 16... Qb6 {[%clk
0:02:17.1]} 17. b3 {[%clk 0:01:53.4]} 17... c4 {[%clk 0:02:12]} 18. bxc4 {[%clk
0:01:39]} 18... bxc4 {[%clk 0:02:10.1]} 19. Rfb1 {[%clk 0:01:30.7]} 19... Qc5
{[%clk 0:02:07.4]} 20. Bc1 {[%clk 0:01:16]} 20... Rfb8 {[%clk 0:02:02]} 21.
Rxb8+ {[%clk 0:01:08.5]} 21... Rxb8 {[%clk 0:02:02.9]} 22. Ba3 {[%clk
0:01:08.3]} 22... Qa5 {[%clk 0:02:00.1]} 23. dxc4 {[%clk 0:01:00.7]} 23... Qxa4
{[%clk 0:01:59]} 24. Bd3 {[%clk 0:00:47.1]} 24... e5 {[%clk 0:01:53]} 25. fxe5
{[%clk 0:00:28.7]} 25... Nxe5 {[%clk 0:01:53.9]} 26. Qg3 {[%clk 0:00:28.9]}
26... Nfd7 {[%clk 0:01:33.7]} 27. Bb2 {[%clk 0:00:23]} 27... Qc6 {[%clk
0:01:13.5]} 28. Bxd4 {[%clk 0:00:23.2]} 28... f6 {[%clk 0:01:07.7]} 29. Kh2
{[%clk 0:00:22]} 29... Nxc4 {[%clk 0:01:00]} 30. Rf1 {[%clk 0:00:11.3]} 30...
Nce5 {[%clk 0:00:57.9]} 31. h4 {[%clk 0:00:08.1]} 31... Qd6 {[%clk 0:00:52.2]}
32. Bf2 {[%clk 0:00:04.2]} 32... h5 {[%clk 0:00:48.8]} 33. Kg1 {[%clk
0:00:03.2]} 33... a5 {[%clk 0:00:46.4]} 34. Ra1 {[%clk 0:00:02.7]} 34... a4
{[%clk 0:00:43]} 35. Rxa4 {[%clk 0:00:01]} 35... Rb1+ {[%clk 0:00:43.5]} 36. Bf1
{[%clk 0:00:01.2]} 36... Qd1 {[%clk 0:00:43.7]} 0-1

[Event "Early-Titled-Tuesday-Blitz-July-09-2024"]
[Site "Chess.com"]
[Date "2024.07.09"]
[Round "3"]
[White "adreyd"]
[Black "Aslanov_Umid"]
[Result "0-1"]
[WhiteElo "2420"]
[BlackElo "2638"]
[TimeControl "180+1"]
[EndTime "8:29:06 PDT"]
[Termination "Aslanov_Umid won on time"]

1. d4 {[%clk 0:03:00.9]} 1... d5 {[%clk 0:03:00.5]} 2. Nf3 {[%clk 0:03:00.7]}
2... Nf6 {[%clk 0:03:00.7]} 3. Bg5 {[%clk 0:03:00.7]} 3... e6 {[%clk 0:02:59.5]}
4. Nbd2 {[%clk 0:03:00]} 4... Be7 {[%clk 0:02:59.4]} 5. e3 {[%clk 0:02:59.4]}
5... O-O {[%clk 0:02:59.6]} 6. Bd3 {[%clk 0:02:59.3]} 6... h6 {[%clk 0:02:56.5]}
7. Bh4 {[%clk 0:02:58.8]} 7... b6 {[%clk 0:02:56.5]} 8. Qe2 {[%clk 0:02:54.5]}
8... Bb7 {[%clk 0:02:56]} 9. O-O {[%clk 0:02:52.1]} 9... Ne4 {[%clk 0:02:46.4]}
10. Bxe7 {[%clk 0:02:46.3]} 10... Qxe7 {[%clk 0:02:47.3]} 11. a4 {[%clk
0:02:39.9]} 11... a5 {[%clk 0:02:42.2]} 12. c3 {[%clk 0:02:37.4]} 12... Nd7
{[%clk 0:02:38.1]} 13. Rfe1 {[%clk 0:02:22.7]} 13... f5 {[%clk 0:02:35.9]} 14.
Bb5 {[%clk 0:02:13.5]} 14... Ndf6 {[%clk 0:02:31.3]} 15. Ne5 {[%clk 0:02:10.5]}
15... Nxd2 {[%clk 0:02:14.4]} 16. Qxd2 {[%clk 0:01:51.8]} 16... Rfc8 {[%clk
0:02:06.5]} 17. f3 {[%clk 0:01:42.5]} 17... c6 {[%clk 0:02:03.1]} 18. Bd3 {[%clk
0:01:42]} 18... Nd7 {[%clk 0:02:02.7]} 19. Nxd7 {[%clk 0:01:39]} 19... Qxd7
{[%clk 0:02:03.6]} 20. e4 {[%clk 0:01:39.6]} 20... fxe4 {[%clk 0:01:45.8]} 21.
fxe4 {[%clk 0:01:40.5]} 21... c5 {[%clk 0:01:46.6]} 22. e5 {[%clk 0:01:26]}
22... cxd4 {[%clk 0:01:42.7]} 23. cxd4 {[%clk 0:01:26.1]} 23... Ba6 {[%clk
0:01:43.3]} 24. Bg6 {[%clk 0:01:14.7]} 24... Rf8 {[%clk 0:01:31.6]} 25. Rac1
{[%clk 0:01:01.1]} 25... Rac8 {[%clk 0:01:09.9]} 26. b3 {[%clk 0:00:58.9]} 26...
Rxc1 {[%clk 0:00:53.7]} 27. Rxc1 {[%clk 0:00:59.8]} 27... Qe7 {[%clk 0:00:54.3]}
28. g3 {[%clk 0:00:48.4]} 28... Qa3 {[%clk 0:00:49.7]} 29. Qc2 {[%clk
0:00:10.7]} 29... Qb4 {[%clk 0:00:49.4]} 30. Rd1 {[%clk 0:00:03.1]} 30... Rc8
{[%clk 0:00:49.5]} 31. Qb2 {[%clk 0:00:01.6]} 31... Rc3 {[%clk 0:00:45.9]} 32.
Kg2 {[%clk 0:00:01.6]} 32... Rxb3 {[%clk 0:00:44.9]} 33. Qf2 {[%clk 0:00:01.7]}
33... Rb2 {[%clk 0:00:43.5]} 34. Rd2 {[%clk 0:00:01.2]} 34... Rxd2 {[%clk
0:00:43.3]} 0-1

[Event "Early-Titled-Tuesday-Blitz-July-09-2024"]
[Site "Chess.com"]
[Date "2024.07.09"]
[Round "3"]
[White "GHANDEEVAM2003"]
[Black "forevery0ung"]
[Result "1-0"]
[WhiteElo "3184"]
[BlackElo "2776"]
[TimeControl "180+1"]
[EndTime "8:29:09 PDT"]
[Termination "GHANDEEVAM2003 won on time"]

1. c4 {[%clk 0:03:00.9]} 1... e5 {[%clk 0:02:56.9]} 2. d3 {[%clk 0:02:59.3]}
2... Bb4+ {[%clk 0:02:56]} 3. Nd2 {[%clk 0:02:58.7]} 3... a5 {[%clk 0:02:55.7]}
4. g3 {[%clk 0:02:57.1]} 4... Nf6 {[%clk 0:02:55.1]} 5. Bg2 {[%clk 0:02:57.4]}
5... O-O {[%clk 0:02:55.2]} 6. Nf3 {[%clk 0:02:57.8]} 6... d6 {[%clk 0:02:53.8]}
7. O-O {[%clk 0:02:57.9]} 7... Re8 {[%clk 0:02:51]} 8. a3 {[%clk 0:02:56.6]}
8... Bc5 {[%clk 0:02:51.3]} 9. b3 {[%clk 0:02:56.5]} 9... Bg4 {[%clk 0:02:46.8]}
10. Bb2 {[%clk 0:02:53.4]} 10... Qc8 {[%clk 0:02:45.9]} 11. e3 {[%clk
0:02:48.6]} 11... Nc6 {[%clk 0:02:45]} 12. Qc2 {[%clk 0:02:48.7]} 12... Bh3
{[%clk 0:02:41.6]} 13. d4 {[%clk 0:02:47.5]} 13... Bxg2 {[%clk 0:02:41.1]} 14.
Kxg2 {[%clk 0:02:47.3]} 14... exd4 {[%clk 0:02:32.7]} 15. exd4 {[%clk
0:02:48.2]} 15... Ba7 {[%clk 0:02:32.6]} 16. Rae1 {[%clk 0:02:26.9]} 16... d5
{[%clk 0:02:10.3]} 17. c5 {[%clk 0:02:26.7]} 17... Qg4 {[%clk 0:02:04]} 18. h3
{[%clk 0:02:19.3]} 18... Qg6 {[%clk 0:02:03.7]} 19. Qxg6 {[%clk 0:02:15.8]}
19... hxg6 {[%clk 0:02:04.6]} 20. Rxe8+ {[%clk 0:01:58.4]} 20... Rxe8 {[%clk
0:02:02.5]} 21. Re1 {[%clk 0:01:59.3]} 21... Rxe1 {[%clk 0:02:02.1]} 22. Nxe1
{[%clk 0:02:00.2]} 22... b6 {[%clk 0:01:55.8]} 23. Nd3 {[%clk 0:01:59.7]} 23...
Ne4 {[%clk 0:01:05.5]} 24. cxb6 {[%clk 0:01:59.4]} 24... Bxb6 {[%clk 0:00:54.6]}
25. Nxe4 {[%clk 0:01:59.2]} 25... dxe4 {[%clk 0:00:55]} 26. Nc5 {[%clk
0:01:59.8]} 26... f5 {[%clk 0:00:39.7]} 27. f3 {[%clk 0:01:51.2]} 27... exf3+
{[%clk 0:00:34.7]} 28. Kxf3 {[%clk 0:01:52.1]} 28... Kf7 {[%clk 0:00:34.6]} 29.
Ke3 {[%clk 0:01:51.3]} 29... g5 {[%clk 0:00:32.6]} 30. Kd3 {[%clk 0:01:42.7]}
30... g6 {[%clk 0:00:23.6]} 31. Bc1 {[%clk 0:01:40.3]} 31... g4 {[%clk
0:00:16.8]} 32. hxg4 {[%clk 0:01:39.1]} 32... fxg4 {[%clk 0:00:17.7]} 33. Ke4
{[%clk 0:01:28.9]} 33... Bxc5 {[%clk 0:00:16.9]} 34. dxc5 {[%clk 0:01:29.8]}
34... Ke6 {[%clk 0:00:17.4]} 35. Bd2 {[%clk 0:01:28.7]} 35... Kd7 {[%clk
0:00:14.7]} 36. Kf4 {[%clk 0:01:20.6]} 36... Ke6 {[%clk 0:00:13.8]} 37. Kxg4
{[%clk 0:01:20]} 37... Kd5 {[%clk 0:00:14]} 38. Kg5 {[%clk 0:01:20.1]} 38...
Kxc5 {[%clk 0:00:13.9]} 39. Kxg6 {[%clk 0:01:17.8]} 39... Kd5 {[%clk 0:00:12.1]}
40. g4 {[%clk 0:01:09.8]} 40... Ke4 {[%clk 0:00:12]} 41. g5 {[%clk 0:01:06.1]}
41... Kd3 {[%clk 0:00:12.2]} 42. Kf6 {[%clk 0:01:01.6]} 1-0

[Event "Early-Titled-Tuesday-Blitz-July-09-2024"]
[Site "Chess.com"]
[Date "2024.07.09"]
[Round "3"]
[White "kacperkarwowski"]
[Black "Kobalia"]
[Result "0-1"]
[WhiteElo "2551"]
[BlackElo "2796"]
[TimeControl "180+1"]
[EndTime "8:29:13 PDT"]
[Termination "Kobalia won by resignation"]

1. e4 {[%clk 0:03:00.9]} 1... c5 {[%clk 0:02:59.3]} 2. Nf3 {[%clk 0:02:50.8]}
2... e6 {[%clk 0:02:59.2]} 3. d4 {[%clk 0:02:47.5]} 3... cxd4 {[%clk 0:02:59.4]}
4. Nxd4 {[%clk 0:02:48.4]} 4... Nc6 {[%clk 0:02:59.7]} 5. Nc3 {[%clk 0:02:46.7]}
5... a6 {[%clk 0:02:59.9]} 6. Be3 {[%clk 0:02:43.4]} 6... Nf6 {[%clk 0:02:59.1]}
7. a3 {[%clk 0:02:38.9]} 7... d6 {[%clk 0:02:57.6]} 8. f4 {[%clk 0:02:29.4]}
8... Be7 {[%clk 0:02:56.6]} 9. Qf3 {[%clk 0:02:22.5]} 9... O-O {[%clk
0:02:55.9]} 10. Nxc6 {[%clk 0:02:19.2]} 10... bxc6 {[%clk 0:02:55.7]} 11. g4
{[%clk 0:02:19.9]} 11... d5 {[%clk 0:02:40.5]} 12. g5 {[%clk 0:02:19.7]} 12...
Nd7 {[%clk 0:02:40.3]} 13. h4 {[%clk 0:01:58.5]} 13... Rb8 {[%clk 0:02:38.9]}
14. O-O-O {[%clk 0:01:42.3]} 14... Qa5 {[%clk 0:02:38.1]} 15. Nb1 {[%clk
0:01:42.6]} 15... Bc5 {[%clk 0:02:08.1]} 16. Bxc5 {[%clk 0:01:19.2]} 16... Qxc5
{[%clk 0:02:07.1]} 17. Qc3 {[%clk 0:01:16.5]} 17... a5 {[%clk 0:01:24]} 18. Qxc5
{[%clk 0:01:07.4]} 18... Nxc5 {[%clk 0:01:23.7]} 19. Nc3 {[%clk 0:01:06.9]}
19... f6 {[%clk 0:01:15.3]} 20. exd5 {[%clk 0:00:59.5]} 20... exd5 {[%clk
0:01:08.7]} 21. Bh3 {[%clk 0:00:42.4]} 21... Bxh3 {[%clk 0:01:03.7]} 22. Rxh3
{[%clk 0:00:40.9]} 22... Rbe8 {[%clk 0:01:03.7]} 23. Rg3 {[%clk 0:00:20.2]}
23... fxg5 {[%clk 0:01:02.4]} 24. fxg5 {[%clk 0:00:20.2]} 24... Rf2 {[%clk
0:01:01.7]} 25. h5 {[%clk 0:00:15.4]} 25... Re5 {[%clk 0:00:55.8]} 26. g6 {[%clk
0:00:13.9]} 26... Rxh5 {[%clk 0:00:54.1]} 27. gxh7+ {[%clk 0:00:14.3]} 27... Kh8
{[%clk 0:00:46]} 28. Rdg1 {[%clk 0:00:10.8]} 28... Rhh2 {[%clk 0:00:45.9]} 29.
Nd1 {[%clk 0:00:04]} 29... Rxc2+ {[%clk 0:00:45.2]} 30. Kb1 {[%clk 0:00:04.7]}
30... Rcd2 {[%clk 0:00:42]} 31. Rxg7 {[%clk 0:00:04.6]} 31... Rxd1+ {[%clk
0:00:41.9]} 32. Rxd1 {[%clk 0:00:04.9]} 32... Kxg7 {[%clk 0:00:41.4]} 33. Rc1
{[%clk 0:00:05.5]} 33... Rxb2+ {[%clk 0:00:35.9]} 34. Ka1 {[%clk 0:00:03]} 34...
Nb3+ {[%clk 0:00:34.8]} 35. Kxb2 {[%clk 0:00:02.9]} 35... Nxc1 {[%clk
0:00:35.1]} 0-1

[Event "Early-Titled-Tuesday-Blitz-July-09-2024"]
[Site "Chess.com"]
[Date "2024.07.09"]
[Round "3"]
[White "amanjazu"]
[Black "Vladimir_Zakhartsov"]
[Result "0-1"]
[WhiteElo "2596"]
[BlackElo "2882"]
[TimeControl "180+1"]
[EndTime "8:29:14 PDT"]
[Termination "Vladimir_Zakhartsov won on time"]

1. e4 {[%clk 0:03:00.9]} 1... c5 {[%clk 0:02:59.7]} 2. Nc3 {[%clk 0:03:00.3]}
2... d6 {[%clk 0:02:58]} 3. g3 {[%clk 0:03:00.4]} 3... g6 {[%clk 0:02:58.5]} 4.
Bg2 {[%clk 0:03:00.9]} 4... Bg7 {[%clk 0:02:59.3]} 5. d3 {[%clk 0:03:01.5]} 5...
Nc6 {[%clk 0:02:59.9]} 6. Be3 {[%clk 0:03:02]} 6... Rb8 {[%clk 0:03:00.1]} 7.
Nf3 {[%clk 0:02:58.7]} 7... Bg4 {[%clk 0:02:57.7]} 8. h3 {[%clk 0:02:18.9]} 8...
Bxf3 {[%clk 0:02:57.7]} 9. Bxf3 {[%clk 0:02:19.8]} 9... b5 {[%clk 0:02:57.3]}
10. Qd2 {[%clk 0:02:19.2]} 10... b4 {[%clk 0:02:54.9]} 11. Nd1 {[%clk
0:02:19.2]} 11... Nf6 {[%clk 0:02:55.2]} 12. O-O {[%clk 0:02:18.5]} 12... O-O
{[%clk 0:02:55.2]} 13. Bg2 {[%clk 0:02:17.8]} 13... a5 {[%clk 0:02:55]} 14. f4
{[%clk 0:02:18]} 14... Nd7 {[%clk 0:02:55.4]} 15. c3 {[%clk 0:02:17.7]} 15... a4
{[%clk 0:02:55.4]} 16. a3 {[%clk 0:02:17.1]} 16... Qa5 {[%clk 0:02:48.2]} 17.
Rf2 {[%clk 0:02:06.8]} 17... bxc3 {[%clk 0:02:47.9]} 18. bxc3 {[%clk 0:02:05]}
18... Rb3 {[%clk 0:02:48]} 19. d4 {[%clk 0:01:55.3]} 19... cxd4 {[%clk
0:02:27.7]} 20. cxd4 {[%clk 0:01:56.2]} 20... Qxd2 {[%clk 0:02:23.3]} 21. Rxd2
{[%clk 0:01:56.9]} 21... Rxe3 {[%clk 0:02:23.9]} 22. Nxe3 {[%clk 0:01:56.8]}
22... Bxd4 {[%clk 0:02:24.6]} 23. Re1 {[%clk 0:01:43]} 23... Bc3 {[%clk
0:02:24.7]} 24. Red1 {[%clk 0:01:36.1]} 24... Bxd2 {[%clk 0:02:24.5]} 25. Rxd2
{[%clk 0:01:37]} 25... Na5 {[%clk 0:01:46.5]} 26. e5 {[%clk 0:01:29.1]} 26...
Nb3 {[%clk 0:01:45.9]} 27. Rd1 {[%clk 0:01:21]} 27... Rc8 {[%clk 0:01:44.9]} 28.
exd6 {[%clk 0:01:17.2]} 28... e6 {[%clk 0:01:45.2]} 29. Ng4 {[%clk 0:00:58.9]}
29... f6 {[%clk 0:01:33.7]} 30. Re1 {[%clk 0:00:31.3]} 30... Kf7 {[%clk
0:01:33.2]} 31. Bd5 {[%clk 0:00:30.8]} 31... Nf8 {[%clk 0:01:23.4]} 32. Bxb3
{[%clk 0:00:19.9]} 32... axb3 {[%clk 0:01:24.3]} 33. Rb1 {[%clk 0:00:20.4]}
33... Rc3 {[%clk 0:01:21.2]} 34. Kf2 {[%clk 0:00:20.1]} 34... Nd7 {[%clk
0:01:17.6]} 35. Ne3 {[%clk 0:00:20.2]} 35... Nc5 {[%clk 0:01:16.4]} 36. Ke2
{[%clk 0:00:19.3]} 36... Rd3 {[%clk 0:01:14.4]} 37. Rc1 {[%clk 0:00:18.2]} 37...
b2 {[%clk 0:01:08.3]} 38. Rb1 {[%clk 0:00:18]} 38... Rb3 {[%clk 0:01:03.7]} 39.
Nc4 {[%clk 0:00:16.9]} 39... Na4 {[%clk 0:00:59.4]} 40. Kd2 {[%clk 0:00:09.5]}
40... Ke8 {[%clk 0:00:57.5]} 41. Rd1 {[%clk 0:00:05.1]} 41... b1=Q {[%clk
0:00:55.1]} 0-1

[Event "Early-Titled-Tuesday-Blitz-July-09-2024"]
[Site "Chess.com"]
[Date "2024.07.09"]
[Round "3"]
[White "GeorgiosSouleidis"]
[Black "GM-2024-GM"]
[Result "1-0"]
[WhiteElo "2657"]
[BlackElo "2332"]
[TimeControl "180+1"]
[EndTime "8:29:14 PDT"]
[Termination "GeorgiosSouleidis won on time"]

1. e4 {[%clk 0:03:00.9]} 1... c5 {[%clk 0:02:55.1]} 2. Be2 {[%clk 0:03:00.8]}
2... e6 {[%clk 0:02:54.6]} 3. d3 {[%clk 0:03:01.2]} 3... Nc6 {[%clk 0:02:54]} 4.
f4 {[%clk 0:03:01.7]} 4... d5 {[%clk 0:02:50.2]} 5. Nf3 {[%clk 0:03:02.2]} 5...
Nf6 {[%clk 0:02:48.9]} 6. e5 {[%clk 0:03:02.4]} 6... Nd7 {[%clk 0:02:48.7]} 7.
O-O {[%clk 0:03:03]} 7... Be7 {[%clk 0:02:43.7]} 8. c4 {[%clk 0:03:02.9]} 8...
Nb6 {[%clk 0:02:42.3]} 9. a4 {[%clk 0:02:59.8]} 9... a5 {[%clk 0:02:42.1]} 10.
Nc3 {[%clk 0:02:59.4]} 10... O-O {[%clk 0:02:37.3]} 11. Nb5 {[%clk 0:02:55.4]}
11... f6 {[%clk 0:02:31.2]} 12. Be3 {[%clk 0:02:38.5]} 12... Bd7 {[%clk
0:02:02.6]} 13. b3 {[%clk 0:02:36.8]} 13... Nb4 {[%clk 0:01:55.5]} 14. exf6
{[%clk 0:02:24.5]} 14... Bxf6 {[%clk 0:01:55.4]} 15. Bxc5 {[%clk 0:02:08.5]}
15... Bxb5 {[%clk 0:01:36.6]} 16. axb5 {[%clk 0:01:54]} 16... Bxa1 {[%clk
0:01:15.6]} 17. Bxf8 {[%clk 0:01:53.6]} 17... Qxf8 {[%clk 0:01:15.5]} 18. Qxa1
{[%clk 0:01:53.1]} 18... a4 {[%clk 0:01:15.5]} 19. bxa4 {[%clk 0:01:39]} 19...
Rxa4 {[%clk 0:01:12.9]} 20. Qe5 {[%clk 0:01:37.4]} 20... Qe7 {[%clk 0:01:01.7]}
21. Qb8+ {[%clk 0:01:29.8]} 21... Kf7 {[%clk 0:00:30.3]} 22. Ne5+ {[%clk
0:01:29]} 22... Kf6 {[%clk 0:00:29.1]} 23. Qh8 {[%clk 0:01:11]} 23... Nd7 {[%clk
0:00:06.9]} 24. Qxh7 {[%clk 0:00:59.9]} 24... Nxe5 {[%clk 0:00:07]} 25. Qh4+
{[%clk 0:00:54.5]} 25... Kf7 {[%clk 0:00:06.1]} 26. fxe5+ {[%clk 0:00:54.2]}
26... Ke8 {[%clk 0:00:06.5]} 27. Qh8+ {[%clk 0:00:46.6]} 27... Kd7 {[%clk
0:00:05.4]} 28. Qg8 {[%clk 0:00:47]} 28... Qc5+ {[%clk 0:00:03.8]} 29. Kh1
{[%clk 0:00:46.9]} 29... Kc7 {[%clk 0:00:04.2]} 30. Qxe6 {[%clk 0:00:38.3]}
30... Kb8 {[%clk 0:00:01.6]} 31. b6 {[%clk 0:00:27.2]} 1-0

[Event "Early-Titled-Tuesday-Blitz-July-09-2024"]
[Site "Chess.com"]
[Date "2024.07.09"]
[Round "3"]
[White "GiorgianBarbosa"]
[Black "Austen48"]
[Result "1-0"]
[WhiteElo "2499"]
[BlackElo "2291"]
[TimeControl "180+1"]
[EndTime "8:29:14 PDT"]
[Termination "GiorgianBarbosa won on time"]

1. b3 {[%clk 0:02:43.9]} 1... Nf6 {[%clk 0:02:57]} 2. Bb2 {[%clk 0:02:44.8]}
2... e6 {[%clk 0:02:54.4]} 3. g3 {[%clk 0:02:44.3]} 3... d5 {[%clk 0:02:51.9]}
4. Bg2 {[%clk 0:02:45.2]} 4... Be7 {[%clk 0:02:49.2]} 5. Nf3 {[%clk 0:02:46.1]}
5... O-O {[%clk 0:02:49.3]} 6. O-O {[%clk 0:02:47]} 6... c5 {[%clk 0:02:48.2]}
7. d3 {[%clk 0:02:47.9]} 7... b6 {[%clk 0:02:46.2]} 8. Nbd2 {[%clk 0:02:48.8]}
8... Bb7 {[%clk 0:02:46.3]} 9. Qe1 {[%clk 0:02:49.7]} 9... Nbd7 {[%clk 0:02:45]}
10. e4 {[%clk 0:02:50.6]} 10... dxe4 {[%clk 0:02:41.6]} 11. dxe4 {[%clk
0:02:51.5]} 11... Qc7 {[%clk 0:02:39.6]} 12. a4 {[%clk 0:02:50.8]} 12... Rfd8
{[%clk 0:02:35.9]} 13. Qe2 {[%clk 0:02:47.8]} 13... h6 {[%clk 0:02:32.9]} 14. e5
{[%clk 0:02:43.7]} 14... Nh7 {[%clk 0:02:17.7]} 15. Nc4 {[%clk 0:02:42.6]} 15...
Ndf8 {[%clk 0:02:14.6]} 16. Nfd2 {[%clk 0:02:40.6]} 16... Bxg2 {[%clk 0:02:13]}
17. Kxg2 {[%clk 0:02:39.9]} 17... Rd7 {[%clk 0:02:07.5]} 18. Ne4 {[%clk
0:02:39]} 18... Rad8 {[%clk 0:02:06.5]} 19. Ned6 {[%clk 0:02:27.8]} 19... Bxd6
{[%clk 0:02:00.9]} 20. Nxd6 {[%clk 0:02:23.1]} 20... f6 {[%clk 0:01:45]} 21.
exf6 {[%clk 0:02:00.2]} 21... Qxd6 {[%clk 0:01:38.5]} 22. fxg7 {[%clk
0:02:01.1]} 22... Ng6 {[%clk 0:01:31.8]} 23. Kg1 {[%clk 0:01:59.2]} 23... Ng5
{[%clk 0:01:27.7]} 24. h4 {[%clk 0:01:54.4]} 24... Nh3+ {[%clk 0:01:01.4]} 25.
Kh2 {[%clk 0:01:53.9]} 25... Nhf4 {[%clk 0:00:56.9]} 26. Qg4 {[%clk 0:01:46.7]}
26... h5 {[%clk 0:00:44.3]} 27. Qg5 {[%clk 0:01:42.6]} 27... Qd5 {[%clk
0:00:31.1]} 28. gxf4 {[%clk 0:01:41.6]} 28... Qxg5 {[%clk 0:00:23.2]} 29. fxg5
{[%clk 0:01:36.9]} 29... Nxh4 {[%clk 0:00:22.7]} 30. Bf6 {[%clk 0:01:34.5]}
30... Re8 {[%clk 0:00:20.7]} 31. Rad1 {[%clk 0:01:33.8]} 31... Rd5 {[%clk
0:00:19.5]} 32. c4 {[%clk 0:01:31.6]} 32... Rxd1 {[%clk 0:00:15.7]} 33. Rxd1
{[%clk 0:01:32.5]} 33... Nf5 {[%clk 0:00:14]} 34. Rd7 {[%clk 0:01:30.4]} 34...
e5 {[%clk 0:00:13.6]} 35. Rxa7 {[%clk 0:01:29]} 35... e4 {[%clk 0:00:12.8]} 36.
Rb7 {[%clk 0:01:28.1]} 36... e3 {[%clk 0:00:09.1]} 37. fxe3 {[%clk 0:01:29]}
37... Nxe3 {[%clk 0:00:08.9]} 38. Rxb6 {[%clk 0:01:28.2]} 38... Ng4+ {[%clk
0:00:09.1]} 39. Kg3 {[%clk 0:01:27.3]} 39... Re3+ {[%clk 0:00:08.2]} 40. Kh4
{[%clk 0:01:26.2]} 40... Kh7 {[%clk 0:00:05.4]} 41. Rb8 {[%clk 0:01:21]} 41...
Nxf6 {[%clk 0:00:03.4]} 42. gxf6 {[%clk 0:01:19.2]} 42... Re4+ {[%clk 0:00:02]}
43. Kxh5 {[%clk 0:01:17.6]} 43... Re5+ {[%clk 0:00:01.7]} 44. Kg4 {[%clk
0:01:17.5]} 44... Re4+ {[%clk 0:00:02]} 45. Kf5 {[%clk 0:01:13.1]} 1-0